[Event "The Elitserien 2024/25: round 1 - 3"]
[Site "Scandic Infra City, Kanalvagen 10, Upplands Vasby, Sweden"]
[Date "2024.10.06"]
[Round "3.5"]
[White "Jepson, Christian"]
[Black "Gajic, Mladen"]
[Result "1/2-1/2"]
[TimeControl "90 minutes for 40 moves + 30 minutes for the rest of the game + 30 seconds per move from move one."]
[WhiteTitle "IM"]
[BlackTitle "FM"]
[WhiteFideId "1701185"]
[BlackFideId "1709178"]
[WhiteElo "2400"]
[BlackElo "2294"]

1. Nf3 {[%emt 00:06:50]} e6 {[%clk 01:25:03]} {[%emt 00:02:01]} 2. c4 {[%clk
01:28:17]} {[%emt 00:00:18]} f5 {[%clk 01:25:28]} {[%emt 00:00:07]} 3. g3
{[%clk 01:28:33]} {[%emt 00:00:13]} Nf6 {[%clk 01:25:53]} {[%emt 00:00:05]} 4.
Bg2 {[%clk 01:29:00]} {[%emt 00:00:03]} Be7 {[%clk 01:26:16]} {[%emt 00:00:08]}
5. O-O {[%clk 01:29:21]} {[%emt 00:00:08]} O-O {[%clk 01:26:44]} {[%emt
00:00:02]} 6. Nc3 {[%clk 01:29:04]} {[%emt 00:00:47]} d6 {[%clk 01:27:07]}
{[%emt 00:00:06]} 7. d4 {[%clk 01:21:52]} {[%emt 00:07:42]} a5 {[%clk
01:16:25]} {[%emt 00:06:44]} 8. b3 {[%clk 01:19:58]} {[%emt 00:02:24]} Ne4
{[%clk 01:14:23]} {[%emt 00:02:32]} 9. Bb2 {[%clk 01:17:07]} {[%emt 00:03:21]}
Nxc3 {[%clk 01:10:13]} {[%emt 00:04:41]} 10. Bxc3 {[%clk 01:17:27]} {[%emt
00:00:09]} Qe8 {[%clk 01:10:18]} {[%emt 00:00:25]} 11. Re1 {[%clk 01:15:06]}
{[%emt 00:02:51]} Qh5 {[%clk 01:08:28]} {[%emt 00:02:20]} 12. e4 {[%clk
01:14:41]} {[%emt 00:00:54]} f4 {[%clk 01:08:52]} {[%emt 00:00:06]} 13. e5
{[%clk 01:11:08]} {[%emt 00:04:04]} d5 {[%clk 00:58:09]} {[%emt 00:11:13]} 14.
Nd2 {[%clk 01:08:25]} {[%emt 00:03:12]} Qxd1 {[%clk 00:54:12]} {[%emt
00:04:28]} 15. Rexd1 {[%clk 01:08:38]} {[%emt 00:00:17]} c6 {[%clk 00:54:30]}
{[%emt 00:00:11]} 16. Nf3 {[%clk 00:56:40]} {[%emt 00:12:27]} Bd7 {[%clk
00:43:34]} {[%emt 00:11:27]} 17. Bd2 {[%clk 00:52:26]} {[%emt 00:04:44]} fxg3
{[%clk 00:36:23]} {[%emt 00:07:42]} 18. hxg3 {[%clk 00:44:42]} {[%emt
00:08:13]} a4 {[%clk 00:20:16]} {[%emt 00:16:38]} 19. Ne1 {[%clk 00:43:49]}
{[%emt 00:01:22]} b5 {[%clk 00:16:08]} {[%emt 00:04:39]} 20. Nd3 {[%clk
00:40:51]} {[%emt 00:03:28]} bxc4 {[%clk 00:15:07]} {[%emt 00:01:31]} 21. bxc4
{[%clk 00:41:11]} {[%emt 00:00:09]} Na6 {[%clk 00:15:05]} {[%emt 00:00:33]} 22.
Rdc1 {[%clk 00:36:42]} {[%emt 00:04:58]} Rab8 {[%clk 00:14:28]} {[%emt
00:01:08]} 23. Bh3 {[%clk 00:26:54]} {[%emt 00:10:17]} g5 {[%clk 00:10:01]}
{[%emt 00:04:57]} 24. cxd5 {[%clk 00:11:05]} {[%emt 00:16:19]} cxd5 {[%clk
00:09:52]} {[%emt 00:00:40]} 25. Nc5 {[%clk 00:10:59]} {[%emt 00:00:36]} Nxc5
{[%clk 00:10:10]} {[%emt 00:00:12]} 26. dxc5 {[%clk 00:10:34]} {[%emt
00:00:54]} Rfc8 {[%clk 00:09:19]} {[%emt 00:01:20]} 27. c6 {[%clk 00:10:52]}
{[%emt 00:00:14]} Rxc6 {[%clk 00:09:16]} {[%emt 00:00:33]} 28. Rxc6 {[%clk
00:11:15]} {[%emt 00:00:07]} Bxc6 {[%clk 00:09:39]} {[%emt 00:00:07]} 29. Bxe6+
{[%clk 00:11:07]} {[%emt 00:00:38]} Kf8 {[%clk 00:09:52]} {[%emt 00:00:16]} 30.
Rc1 {[%clk 00:11:27]} {[%emt 00:00:09]} Be8 {[%clk 00:08:32]} {[%emt 00:01:51]}
31. f4 {[%clk 00:06:58]} {[%emt 00:04:59]} Rb2 {[%clk 00:05:18]} {[%emt
00:03:44]} 32. Be3 {[%clk 00:07:11]} {[%emt 00:00:17]} Rxa2 {[%clk 00:03:47]}
{[%emt 00:02:02]} 33. f5 {[%clk 00:06:24]} {[%emt 00:01:17]} Re2 {[%clk
00:03:37]} {[%emt 00:00:39]} 34. Bd4 {[%clk 00:06:12]} {[%emt 00:00:42]} Re4
{[%clk 00:03:23]} {[%emt 00:00:45]} 35. Rc8 {[%clk 00:03:57]} {[%emt 00:02:45]}
Rxd4 {[%clk 00:03:12]} {[%emt 00:00:41]} 36. f6 {[%clk 00:03:06]} {[%emt
00:01:20]} Rc4 {[%clk 00:01:51]} {[%emt 00:01:52]} 37. Ra8 {[%clk 00:03:23]}
{[%emt 00:00:12]} Bxf6 {[%clk 00:00:36]} {[%emt 00:01:45]} 38. exf6 {[%clk
00:03:46]} {[%emt 00:00:08]} Rc6 {[%clk 00:00:38]} {[%emt 00:00:28]} 39. Bd7
{[%clk 00:03:23]} {[%emt 00:00:53]} Rc1+ {[%clk 00:00:47]} {[%emt 00:00:20]} 40.
Kf2 {[%clk 00:02:12]} {[%emt 00:01:41]} Kf7 {[%clk 00:00:35]} {[%emt 00:00:42]}
41. Bxe8+ {[%clk 00:01:46]} {[%emt 00:00:57]} Kxf6 {[%clk 00:29:02]} {[%emt
00:02:03]} 42. Rxa4 {[%clk 00:31:59]} {[%emt 00:00:17]} Rc2+ {[%clk 00:28:48]}
{[%emt 00:00:43]} 43. Kf3 {[%clk 00:30:42]} {[%emt 00:01:47]} Rc8 {[%clk
00:20:58]} {[%emt 00:08:21]} 44. Bh5 {[%clk 00:26:02]} {[%emt 00:05:09]} Rc3+
{[%clk 00:18:03]} {[%emt 00:03:25]} 45. Kg4 {[%clk 00:25:08]} {[%emt 00:01:24]}
Rc6 {[%clk 00:18:29]} {[%emt 00:00:05]} 46. Ra7 {[%clk 00:24:26]} {[%emt
00:01:11]} h6 {[%clk 00:18:58]} {[%emt 00:00:02]} 47. Rd7 {[%clk 00:22:59]}
{[%emt 00:01:56]} Ke5 {[%clk 00:16:58]} {[%emt 00:02:25]} 48. Bf7 {[%clk
00:22:15]} {[%emt 00:01:19]} d4 {[%clk 00:17:12]} {[%emt 00:00:16]} 49. Be8
{[%clk 00:18:25]} {[%emt 00:04:20]} Rb6 {[%clk 00:14:04]} {[%emt 00:03:37]} 50.
Rd8 {[%clk 00:12:09]} {[%emt 00:06:47]} Ke4 {[%clk 00:13:16]} {[%emt 00:01:18]}
51. Kh5 {[%clk 00:10:46]} {[%emt 00:01:52]} Rb2 {[%clk 00:07:27]} {[%emt
00:06:20]} 52. Kxh6 {[%clk 00:04:30]} {[%emt 00:06:46]} Kf3 {[%clk 00:06:47]}
{[%emt 00:01:11]} 53. Rxd4 {[%clk 00:04:48]} {[%emt 00:00:12]} Kxg3 {[%clk
00:06:16]} {[%emt 00:01:01]} 54. Kxg5 {[%clk 00:05:12]} {[%emt 00:00:05]} Kf3
{[%clk 00:06:28]} {[%emt 00:00:16]} 55. Bg6 {[%clk 00:05:11]} {[%emt 00:00:32]}
Rb5+ {[%clk 00:06:18]} {[%emt 00:00:40]} 56. Bf5 {[%clk 00:05:36]} {[%emt
00:00:06]} Rb3 {[%clk 00:05:43]} {[%emt 00:01:03]} 57. Rh4 {[%clk 00:05:26]}
{[%emt 00:00:41]} Re3 {[%clk 00:05:03]} {[%emt 00:01:11]} 58. Rh2 {[%clk
00:05:17]} {[%emt 00:00:39]} Kg3 {[%clk 00:05:07]} {[%emt 00:00:26]} 59. Rd2
{[%clk 00:05:20]} {[%emt 00:00:28]} Kf3 {[%clk 00:04:40]} {[%emt 00:00:56]} 60.
Kf6 {[%clk 00:01:34]} {[%emt 00:04:16]} Kf4 {[%clk 00:04:30]} {[%emt 00:00:39]}
61. Rd4+ {[%clk 00:01:40]} {[%emt 00:00:25]} Kg3 {[%clk 00:04:35]} {[%emt
00:00:25]} 62. Be4 {[%clk 00:01:50]} {[%emt 00:00:20]} Kf4 {[%clk 00:04:35]}
{[%emt 00:00:30]} 63. Bd5+ {[%clk 00:02:08]} {[%emt 00:00:12]} Kg3 {[%clk
00:04:57]} {[%emt 00:00:08]} 64. Kf5 {[%clk 00:02:30]} {[%emt 00:00:08]} Kf2
{[%clk 00:03:09]} {[%emt 00:02:17]} 65. Kf4 {[%clk 00:02:45]} {[%emt 00:00:16]}
Re8 {[%clk 00:02:02]} {[%emt 00:01:37]} 66. Rd2+ {[%clk 00:02:47]} {[%emt
00:00:28]} Re2 {[%clk 00:02:24]} {[%emt 00:00:07]} 67. Rd3 {[%clk 00:02:57]}
{[%emt 00:00:20]} Re8 {[%clk 00:02:48]} {[%emt 00:00:05]} 68. Be4 {[%clk
00:03:05]} {[%emt 00:00:24]} Rf8+ {[%clk 00:03:07]} {[%emt 00:00:12]} 69. Bf5
{[%clk 00:03:28]} {[%emt 00:00:06]} Ke2 {[%clk 00:03:03]} {[%emt 00:00:34]} 70.
Rc3 {[%clk 00:03:36]} {[%emt 00:00:23]} Rd8 {[%clk 00:02:29]} {[%emt 00:01:02]}
71. Be4 {[%clk 00:02:50]} {[%emt 00:01:17]} Rf8+ {[%clk 00:02:29]} {[%emt
00:00:29]} 72. Ke5 {[%clk 00:03:14]} {[%emt 00:00:07]} Kf2 {[%clk 00:01:49]}
{[%emt 00:01:10]} 73. Rc2+ {[%clk 00:03:34]} {[%emt 00:00:09]} Ke3 {[%clk
00:01:59]} {[%emt 00:00:18]} 74. Rc3+ {[%clk 00:03:28]} {[%emt 00:00:39]} Kf2
{[%clk 00:01:16]} {[%emt 00:01:12]} 75. Kd4 {[%clk 00:02:24]} {[%emt 00:01:35]}
Rd8+ {[%clk 00:01:32]} {[%emt 00:00:15]} 76. Bd5 {[%clk 00:02:48]} {[%emt
00:00:05]} Re8 {[%clk 00:01:40]} {[%emt 00:00:22]} 77. Rf3+ {[%clk 00:02:43]}
{[%emt 00:00:35]} Ke2 {[%clk 00:01:56]} {[%emt 00:00:14]} 78. Rg3 {[%clk
00:02:49]} {[%emt 00:00:24]} Rf8 {[%clk 00:01:47]} {[%emt 00:00:38]} 79. Rg2+
{[%clk 00:02:27]} {[%emt 00:00:52]} Rf2 {[%clk 00:00:48]} {[%emt 00:01:30]} 80.
Rg1 {[%clk 00:02:50]} {[%emt 00:00:06]} Rh2 {[%clk 00:00:56]} {[%emt 00:00:22]}
81. Be4 {[%clk 00:02:21]} {[%emt 00:01:00]} Kf2 {[%clk 00:00:51]} {[%emt
00:00:35]} 82. Rg4 {[%clk 00:02:18]} {[%emt 00:00:33]} Ke2 {[%clk 00:01:10]}
{[%emt 00:00:11]} 83. Rf4 {[%clk 00:02:01]} {[%emt 00:00:47]} Kd2 {[%clk
00:01:08]} {[%emt 00:00:31]} 84. Bd3 {[%clk 00:01:35]} {[%emt 00:00:57]} Ke1
{[%clk 00:00:34]} {[%emt 00:01:04]} 85. Kc3 {[%clk 00:01:11]} {[%emt 00:00:53]}
Rh1 {[%clk 00:00:42]} {[%emt 00:00:23]} 86. Rf3 {[%clk 00:01:07]} {[%emt
00:00:34]} Rg1 {[%clk 00:00:55]} {[%emt 00:00:16]} 87. Bc4 {[%clk 00:01:23]}
{[%emt 00:00:15]} Rh1 {[%clk 00:00:46]} {[%emt 00:00:40]} 88. Bd3 {[%clk
00:01:10]} {[%emt 00:00:42]} Rg1 {[%clk 00:00:59]} {[%emt 00:00:17]} 89. Kd4
{[%clk 00:01:25]} {[%emt 00:00:14]} Rg8 {[%clk 00:00:44]} {[%emt 00:00:45]} 90.
Rf1+ {[%clk 00:01:49]} {[%emt 00:00:07]} Kd2 {[%clk 00:01:13]} {[%emt
00:00:02]} 91. Rf2+ {[%clk 00:02:12]} {[%emt 00:00:06]} Ke1 {[%clk 00:01:29]}
{[%emt 00:00:14]} 92. Re2+ {[%clk 00:01:44]} {[%emt 00:00:58]} Kd1 {[%clk
00:01:53]} {[%emt 00:00:05]} 93. Rh2 {[%clk 00:01:41]} {[%emt 00:00:33]} Ke1
{[%clk 00:01:57]} {[%emt 00:00:27]} 94. Be4 {[%clk 00:01:06]} {[%emt 00:01:05]}
Rg3 {[%clk 00:02:09]} {[%emt 00:00:18]} 95. Rb2 {[%clk 00:00:52]} {[%emt
00:00:44]} Kf1 {[%clk 00:02:08]} {[%emt 00:00:29]} 96. Bd3+ {[%clk 00:01:06]}
{[%emt 00:00:17]} Kg1 {[%clk 00:02:00]} {[%emt 00:00:39]} 97. Ke4 {[%clk
00:01:28]} {[%emt 00:00:08]} Rg8 {[%clk 00:02:15]} {[%emt 00:00:13]} 98. Kf3
{[%clk 00:01:42]} {[%emt 00:00:17]} Rf8+ {[%clk 00:02:19]} {[%emt 00:00:27]} 99.
Ke3 {[%clk 00:02:04]} {[%emt 00:00:07]} Ra8 {[%clk 00:01:56]} {[%emt 00:00:53]}
100. Rb1+ {[%clk 00:01:32]} {[%emt 00:01:04]} Kh2 {[%clk 00:02:24]} {[%emt
00:00:02]} 101. Be4 {[%clk 00:01:28]} {[%emt 00:00:33]} Rf8 {[%clk 00:01:25]}
{[%emt 00:01:28]} 102. Rh1+ {[%clk 00:00:56]} {[%emt 00:01:03]} Kg3 {[%clk
00:01:45]} {[%emt 00:00:10]} 103. Rh7 {[%clk 00:01:02]} {[%emt 00:00:24]} Rg8
{[%clk 00:01:09]} {[%emt 00:01:06]} 104. Rh5 {[%clk 00:00:48]} {[%emt
00:00:44]} Re8 {[%clk 00:01:18]} {[%emt 00:00:22]} 105. Rg5 {[%clk 00:01:01]}
{[%emt 00:00:15]} 1/2-1/2

[Event "The Elitserien 2024/25: round 1 - 3"]
[Site "Scandic Infra City, Kanalvagen 10, Upplands Vasby, Sweden"]
[Date "2024.10.06"]
[Round "3.6"]
[White "Kingsley, Elias"]
[Black "Lindgren, Philip"]
[Result "0-1"]
[TimeControl "90 minutes for 40 moves + 30 minutes for the rest of the game + 30 seconds per move from move one."]
[BlackTitle "IM"]
[WhiteFideId "1775006"]
[BlackFideId "1713230"]
[WhiteElo "2045"]
[BlackElo "2379"]

1. Nf3 {[%clk 01:30:42]} {[%emt 00:00:18]} d5 {[%clk 01:30:37]} {[%emt
00:00:23]} 2. b3 {[%clk 01:29:33]} {[%emt 00:01:39]} Bg4 {[%clk 01:29:44]}
{[%emt 00:01:23]} 3. Bb2 {[%clk 01:26:22]} {[%emt 00:03:41]} Bxf3 {[%clk
01:28:07]} {[%emt 00:02:08]} 4. exf3 {[%clk 01:23:28]} {[%emt 00:03:23]} Nd7
{[%clk 01:27:50]} {[%emt 00:00:46]} 5. d4 {[%clk 01:18:47]} {[%emt 00:05:12]}
g6 {[%clk 01:24:22]} {[%emt 00:03:58]} 6. g3 {[%clk 01:12:35]} {[%emt
00:06:43]} Bg7 {[%clk 01:24:18]} {[%emt 00:00:32]} 7. Bg2 {[%clk 01:06:42]}
{[%emt 00:06:25]} c5 {[%clk 01:23:00]} {[%emt 00:01:47]} 8. f4 {[%clk
01:03:20]} {[%emt 00:03:52]} e6 {[%clk 01:18:43]} {[%emt 00:04:47]} 9. c4
{[%clk 00:54:31]} {[%emt 00:09:19]} dxc4 {[%clk 01:15:49]} {[%emt 00:03:24]} 10.
bxc4 {[%clk 00:41:53]} {[%emt 00:13:07]} Ne7 {[%clk 01:11:33]} {[%emt
00:04:46]} 11. Bc3 {[%clk 00:32:44]} {[%emt 00:09:39]} cxd4 {[%clk 00:58:33]}
{[%emt 00:13:31]} 12. Bxd4 {[%clk 00:32:48]} {[%emt 00:00:26]} Qa5+ {[%clk
00:55:46]} {[%emt 00:03:16]} 13. Nc3 {[%clk 00:31:51]} {[%emt 00:01:28]} Bxd4
{[%clk 00:22:30]} {[%emt 00:33:46]} 14. Qxd4 {[%clk 00:32:14]} {[%emt
00:00:07]} O-O-O {[%clk 00:22:40]} {[%emt 00:00:19]} 15. O-O {[%clk 00:25:40]}
{[%emt 00:07:05]} Nf5 {[%clk 00:22:25]} {[%emt 00:00:45]} 16. Qe4 {[%clk
00:21:50]} {[%emt 00:04:20]} Nc5 {[%clk 00:20:48]} {[%emt 00:02:07]} 17. Qe5
{[%clk 00:19:55]} {[%emt 00:02:25]} f6 {[%clk 00:13:03]} {[%emt 00:08:15]} 18.
Qxf6 {[%clk 00:17:00]} {[%emt 00:03:25]} Nd7 {[%clk 00:13:24]} {[%emt
00:00:09]} 19. Qxe6 {[%clk 00:13:32]} {[%emt 00:03:58]} Rhe8 {[%clk 00:13:47]}
{[%emt 00:00:07]} 20. Qd5 {[%clk 00:05:07]} {[%emt 00:08:55]} Nc5 {[%clk
00:13:58]} {[%emt 00:00:18]} 21. Qf7 {[%clk 00:05:33]} {[%emt 00:00:05]} Qxc3
{[%clk 00:13:12]} {[%emt 00:01:16]} 22. Qxh7 {[%clk 00:05:39]} {[%emt
00:00:24]} Qf6 {[%clk 00:10:03]} {[%emt 00:03:40]} 23. Rab1 {[%clk 00:04:46]}
{[%emt 00:01:22]} Re7 {[%clk 00:09:55]} {[%emt 00:00:38]} 24. Qh3 {[%clk
00:05:07]} {[%emt 00:00:09]} Kc7 {[%clk 00:09:03]} {[%emt 00:01:22]} 25. Bd5
{[%clk 00:04:54]} {[%emt 00:00:42]} Nd4 {[%clk 00:08:40]} {[%emt 00:00:53]} 26.
Qg2 {[%clk 00:04:43]} {[%emt 00:00:41]} b6 {[%clk 00:08:36]} {[%emt 00:00:35]}
27. Kh1 {[%clk 00:02:48]} {[%emt 00:02:26]} Re2 {[%clk 00:07:17]} {[%emt
00:01:48]} 28. a4 {[%clk 00:02:39]} {[%emt 00:00:39]} Ra2 {[%clk 00:06:53]}
{[%emt 00:00:53]} 29. Ra1 {[%clk 00:03:06]} {[%emt 00:00:04]} Rxa1 {[%clk
00:05:48]} {[%emt 00:01:36]} 30. Rxa1 {[%clk 00:03:32]} {[%emt 00:00:03]} Re8
{[%clk 00:05:47]} {[%emt 00:00:31]} 31. h4 {[%clk 00:02:48]} {[%emt 00:01:14]}
Ndb3 {[%clk 00:03:15]} {[%emt 00:03:01]} 32. Ra2 {[%clk 00:02:39]} {[%emt
00:00:40]} Re1+ {[%clk 00:02:34]} {[%emt 00:01:11]} 33. Kh2 {[%clk 00:03:05]}
{[%emt 00:00:04]} Qc3 {[%clk 00:01:33]} {[%emt 00:01:31]} 34. Ba8 {[%clk
00:02:24]} {[%emt 00:01:09]} Qf6 {[%clk 00:00:46]} {[%emt 00:01:18]} 35. Qd5
{[%clk 00:02:14]} {[%emt 00:00:40]} Re7 {[%clk 00:00:46]} {[%emt 00:00:30]} 36.
Qf3 {[%clk 00:01:08]} {[%emt 00:01:36]} Nd4 {[%clk 00:00:46]} {[%emt 00:00:31]}
37. Qd5 {[%clk 00:01:09]} {[%emt 00:00:30]} a5 {[%clk 00:00:34]} {[%emt
00:00:41]} 38. Qg2 {[%clk 00:00:44]} {[%emt 00:00:55]} Kb8 {[%clk 00:00:37]}
{[%emt 00:00:27]} 39. Bd5 {[%clk 00:00:53]} {[%emt 00:00:21]} Ka7 {[%clk
00:00:42]} {[%emt 00:00:26]} 40. Qf1 {[%clk 00:00:43]} {[%emt 00:00:39]} Qf5
{[%clk 00:00:35]} {[%emt 00:00:37]} 41. Qd1 {[%clk 00:30:12]} {[%emt 00:01:01]}
Qf6 {[%clk 00:23:41]} {[%emt 00:07:24]} 42. Qg4 {[%clk 00:27:46]} {[%emt
00:02:55]} Nf5 {[%clk 00:20:10]} {[%emt 00:04:02]} 43. Kg2 {[%clk 00:24:48]}
{[%emt 00:03:29]} Nd3 {[%clk 00:17:44]} {[%emt 00:02:55]} 44. Kh2 {[%clk
00:20:57]} {[%emt 00:04:21]} Re1 {[%clk 00:10:16]} {[%emt 00:07:57]} 45. Qf3
{[%clk 00:19:16]} {[%emt 00:02:12]} Nxh4 {[%clk 00:06:18]} {[%emt 00:04:28]} 46.
Qxd3 {[%clk 00:11:57]} {[%emt 00:07:48]} Nf3+ {[%clk 00:06:34]} {[%emt
00:00:14]} 47. Kg2 {[%clk 00:08:45]} {[%emt 00:03:42]} Qh8 {[%clk 00:06:40]}
{[%emt 00:00:25]} 48. Kxf3 {[%clk 00:08:29]} {[%emt 00:00:46]} Qh1+ {[%clk
00:06:59]} {[%emt 00:00:11]} 49. Kg4 {[%clk 00:08:49]} {[%emt 00:00:10]} Qh5#
{[%clk 00:07:24]} {[%emt 00:00:05]} 0-1